bitfinex/quotes_BTCUSD_20230115
["timestamp","ask_amount","ask_price","bid_price","bid_amount"]
[1673769204691,1.96966008,20733.0,20732.0,0.09250021]
[1673769207495,1.60851595,20733.0,20732.0,0.09250021]
[1673769209571,1.60851595,20733.0,20732.0,0.09242362]
[1673769210090,1.60851595,20733.0,20732.0,0.33242362]
[1673769216322,2.04208202,20733.0,20732.0,0.33242362]
[1673769217061,2.04208202,20733.0,20729.0,3.153]
[1673769217062,0.12090388,20731.0,20729.0,2.676]
[1673769217311,0.12090388,20731.0,20728.0,0.00553473]
[1673769217312,1.28498646,20730.0,20728.0,0.00553473]
[1673769217559,0.27397544,20729.0,20728.0,0.00553473]
[1673769217804,0.75639044,20729.0,20728.0,0.00553473]
[1673769218056,0.69927844,20729.0,20728.0,0.00553473]
[1673769218307,0.75639044,20729.0,20728.0,0.00553473]
[1673769218778,0.90696579,20729.0,20728.0,0.03753473]
[1673769219027,0.76239044,20729.0,20728.0,0.03753473]
[1673769219284,0.90696497,20729.0,20728.0,0.03753473]
[1673769219559,0.63298953,20729.0,20728.0,0.03753473]
[1673769219819,0.15057453,20729.0,20728.0,0.03753473]
[1673769223334,0.006,20729.0,20728.0,0.03753473]
[1673769223582,0.49280525,20729.0,20728.0,0.03753473]
[1673769230365,0.69449178,20729.0,20728.0,0.03753473]
[1673769230634,0.63737978,20729.0,20728.0,0.03753473]
[1673769234183,0.85424322,20729.0,20728.0,0.03753473]
[1673769234431,0.63137978,20729.0,20728.0,0.00553473]
[1673769234659,0.63737978,20729.0,20728.0,0.03453473]
[1673769237272,0.63737978,20729.0,20728.0,0.13605462]
[1673769237531,0.63737978,20729.0,20728.0,1.53547393]
[1673769237532,0.006,20729.0,20728.0,1.53547393]
[1673769237791,0.006,20729.0,20728.0,2.49266214]
[1673769238070,0.006,20729.0,20728.0,2.51062419]
[1673769238350,0.006,20729.0,20728.0,4.03586694]
[1673769238610,0.006,20729.0,20728.0,3.4753523]
[1673769238863,0.006,20729.0,20728.0,3.1753523]
[1673769239170,0.006,20729.0,20728.0,3.4753523]
[1673769239427,0.006,20729.0,20728.0,3.17599621]
[1673769239678,0.006,20729.0,20728.0,3.18093868]
[1673769240462,0.006,20729.0,20728.0,3.33193546]
[1673769240713,0.006,20729.0,20728.0,3.47599765]
[1673769240980,0.006,20729.0,20728.0,3.61972838]
[1673769241236,0.006,20729.0,20728.0,3.33193546]
[1673769241777,0.006,20729.0,20728.0,3.47599889]
[1673769242791,0.006,20729.0,20728.0,3.33193546]
[1673769243088,0.006,20729.0,20728.0,3.47601877]
[1673769243342,0.006,20729.0,20728.0,3.35268858]
[1673769243870,0.006,20729.0,20728.0,2.8413226]
[1673769244126,0.006,20729.0,20728.0,1.87643543]
[1673769244622,0.006,20729.0,20728.0,2.17643543]
[1673769244873,0.006,20729.0,20728.0,1.87643543]
[1673769245125,0.006,20729.0,20728.0,1.87667968]
[1673769245907,0.006,20729.0,20728.0,1.37348756]
[1673769246197,0.006,20729.0,20728.0,1.74437324]
[1673769246430,0.006,20729.0,20728.0,1.60004568]
[1673769248033,0.006,20729.0,20728.0,1.59154568]
[1673769248322,0.488415,20729.0,20728.0,0.56126699]
[1673769249059,0.006,20729.0,20728.0,0.56126699]
[1673769253733,0.006,20729.0,20728.0,0.88255399]
[1673769254785,0.006,20729.0,20728.0,0.35575162]
[1673769255045,0.75734018,20729.0,20728.0,0.03446462]
[1673769255301,0.77696935,20729.0,20728.0,0.03446462]
[1673769255551,0.99383279,20729.0,20728.0,0.03446462]
[1673769255809,0.84925826,20729.0,20728.0,0.03446462]
[1673769256058,1.13840966,20729.0,20728.0,0.03446462]
[1673769256817,1.33167326,20729.0,20728.0,0.03446462]
[1673769257330,1.62082466,20729.0,20728.0,0.03446462]
[1673769258388,1.40396122,20729.0,20728.0,0.03446462]
[1673769259143,2.18239286,20729.0,20728.0,0.03446462]
[1673769259675,1.40396122,20729.0,20728.0,0.03446462]
[1673769259923,2.18233358,20729.0,20728.0,0.03446462]
[1673769260948,1.83152189,20729.0,20728.0,0.03446462]
[1673769261201,1.18076613,20729.0,20728.0,0.03446462]
[1673769261472,1.84511467,20729.0,20728.0,0.03446462]
[1673769261754,2.13398259,20729.0,20728.0,0.03446462]
[1673769261975,1.35603996,20729.0,20728.0,0.03446462]
[1673769262266,1.57268726,20729.0,20728.0,0.03446462]
[1673769262562,2.3505349,20729.0,20728.0,0.03440458]
[1673769262810,2.3505349,20729.0,20728.0,0.00540458]
[1673769263079,2.3975349,20729.0,20728.0,0.00840458]
[1673769263857,1.83629727,20729.0,20728.0,0.00840458]
[1673769264109,1.61968726,20729.0,20728.0,0.00840458]
[1673769264363,1.83629716,20729.0,20728.0,0.00840458]
[1673769264612,1.83629712,20729.0,20728.0,0.00840458]
[1673769265965,1.35388212,20729.0,20728.0,0.00840458]
[1673769266770,1.29677012,20729.0,20728.0,0.00840458]
[1673769267046,1.15228606,20729.0,20728.0,0.00840458]
[1673769267562,0.9356762,20729.0,20728.0,0.00840458]
[1673769269617,0.79129234,20729.0,20728.0,0.00840458]
[1673769271465,0.9356762,20729.0,20728.0,0.00840458]
[1673769271746,0.79129234,20729.0,20728.0,0.00840458]
[1673769276504,0.79129234,20729.0,20728.0,0.10999458]
[1673769277005,0.2696473,20729.0,20728.0,0.91372058]
[1673769277287,0.2696473,20729.0,20728.0,1.55315512]
[1673769277808,0.2696473,20729.0,20728.0,1.54315512]
[1673769284211,0.2696473,20729.0,20728.0,0.73942912]
[1673769289343,0.2696473,20729.0,20728.0,1.06071612]
[1673769290567,0.2696473,20729.0,20728.0,0.73942912]
[1673769291060,0.2696473,20729.0,20728.0,0.63943454]
[1673769295924,0.2696473,20729.0,20728.0,0.96072154]
[1673769297446,0.2166473,20729.0,20728.0,0.96072154]
[1673769297717,0.2226473,20729.0,20728.0,0.99072154]
[1673769297960,0.2166473,20729.0,20728.0,0.96072154]
[1673769298214,0.2226473,20729.0,20728.0,0.99072154]
[1673769298470,0.2166473,20729.0,20728.0,0.96072154]
[1673769298729,0.2226473,20729.0,20728.0,0.99072154]
[1673769298985,0.2226473,20729.0,20728.0,1.44316054]
[1673769299493,0.2226473,20729.0,20728.0,1.92036223]
[1673769299999,0.2226473,20729.0,20728.0,1.95036223]
[1673769300000,0.2286473,20729.0,20728.0,1.95036223]
[1673769300259,0.2166473,20729.0,20728.0,1.92036223]
[1673769300517,0.2226473,20729.0,20728.0,1.95036223]
[1673769300772,0.2166473,20729.0,20728.0,1.92036223]
[1673769301048,0.2226473,20729.0,20728.0,1.95036223]
[1673769301299,0.2226473,20729.0,20728.0,2.2533297]
[1673769301581,0.2280873,20729.0,20728.0,3.66618083]
[1673769301841,0.2160873,20729.0,20728.0,3.63618083]
[1673769302623,0.2220873,20729.0,20728.0,3.8995988]
[1673769302890,0.2160873,20729.0,20728.0,3.50598083]
[1673769303143,0.2220873,20729.0,20728.0,4.09436069]
[1673769303404,0.2160873,20729.0,20728.0,3.92064547]
[1673769303715,0.2220873,20729.0,20728.0,3.65064547]
[1673769303921,0.2160873,20729.0,20728.0,3.62064547]
[1673769304148,0.2220873,20729.0,20728.0,3.65064547]
[1673769304397,0.2220873,20729.0,20728.0,3.62029835]
[1673769304650,0.2280873,20729.0,20728.0,3.65029835]
[1673769304899,0.2160873,20729.0,20728.0,3.10076723]
[1673769305158,0.2160873,20729.0,20728.0,3.10081103]
[1673769305370,0.2160873,20729.0,20728.0,2.13590902]
[1673769305619,0.2160873,20729.0,20728.0,3.10081299]
[1673769305872,0.2220873,20729.0,20728.0,3.13081299]
[1673769306645,0.2220873,20729.0,20728.0,3.34735734]
[1673769307146,0.2220873,20729.0,20728.0,3.13105724]
[1673769307913,0.2220873,20729.0,20728.0,3.34735734]
[1673769308162,0.2220873,20729.0,20728.0,3.13105724]
[1673769309665,0.2220873,20729.0,20728.0,3.64735734]
[1673769309918,0.2220873,20729.0,20728.0,3.34735734]
[1673769310166,0.2220873,20729.0,20728.0,3.43105724]
[1673769310890,0.2220873,20729.0,20728.0,3.64735734]
[1673769311900,0.2220873,20729.0,20728.0,3.95044695]
[1673769312492,0.2220873,20729.0,20728.0,3.65044695]
[1673769312705,0.2220873,20729.0,20728.0,1.53089232]
[1673769312961,0.2220873,20729.0,20728.0,1.20960532]
[1673769314483,0.2160873,20729.0,20728.0,1.17960532]
[1673769315003,0.2220873,20729.0,20728.0,1.20660532]
[1673769315519,0.2220873,20729.0,20728.0,1.35068302]
[1673769315770,0.2220873,20729.0,20728.0,1.83312202]
[1673769316021,0.2220873,20729.0,20728.0,3.33561787]
[1673769316789,0.2220873,20729.0,20728.0,3.24428094]
[1673769317053,0.2220873,20729.0,20728.0,3.40414774]
[1673769317277,0.2220873,20729.0,20728.0,4.15079926]
[1673769317497,0.2220873,20729.0,20728.0,3.56300634]
[1673769317748,0.2160873,20729.0,20728.0,3.53600634]
[1673769318005,0.2160873,20729.0,20728.0,3.56300634]
[1673769318006,0.2220873,20729.0,20728.0,3.56300634]
[1673769318286,0.2220873,20729.0,20728.0,3.70711972]
[1673769318553,0.2220873,20729.0,20728.0,4.15079926]
[1673769321083,0.2220873,20729.0,20728.0,3.86300634]
[1673769321346,0.2220873,20729.0,20728.0,4.15079926]
[1673769323119,0.2220873,20729.0,20728.0,3.86300634]
[1673769323370,0.2220873,20729.0,20728.0,4.15079926]
[1673769325214,0.22200415,20729.0,20728.0,3.53243128]
[1673769325712,0.22200415,20729.0,20728.0,4.16990357]
[1673769325943,0.22200415,20729.0,20728.0,3.95360347]
[1673769326187,0.22200415,20729.0,20728.0,4.31336917]
[1673769326677,0.22200415,20729.0,20728.0,3.95360347]
[1673769327294,0.22200415,20729.0,20728.0,4.1697957]
[1673769327538,0.22200415,20729.0,20728.0,3.95360347]
[1673769328084,0.22200415,20729.0,20728.0,3.67589688]
[1673769328785,0.22200415,20729.0,20728.0,4.20651301]
[1673769329001,0.22200415,20729.0,20728.0,3.67589688]
[1673769329269,0.22200415,20729.0,20728.0,4.32482127]
[1673769329651,0.22200415,20729.0,20728.0,3.67589688]
[1673769330104,0.22200415,20729.0,20728.0,4.17474382]
[1673769331395,0.22200415,20729.0,20728.0,3.81497812]
[1673769331621,0.22200415,20729.0,20728.0,4.17474382]
[1673769333526,0.22200415,20729.0,20728.0,3.67589688]
[1673769333759,0.22200415,20729.0,20728.0,4.20536106]
[1673769336721,0.22200415,20729.0,20728.0,3.91756814]
[1673769336947,0.22200415,20729.0,20728.0,3.38810396]
[1673769337208,0.22200415,20729.0,20728.0,4.02797517]
[1673769337982,0.22200415,20729.0,20728.0,4.03452501]
[1673769338235,0.1873016,20729.0,20728.0,3.38810396]
[1673769338482,0.1873016,20729.0,20728.0,3.38911233]
[1673769339003,0.1873016,20729.0,20728.0,3.96375285]
[1673769340013,0.006,20729.0,20728.0,3.81972908]
[1673769340756,0.006,20729.0,20728.0,3.86469061]
[1673769344749,0.006,20729.0,20728.0,3.24508856]
[1673769345541,0.006,20729.0,20728.0,3.87020397]
[1673769346542,0.006,20729.0,20728.0,3.73309894]
[1673769347025,0.006,20729.0,20728.0,3.8461088]
[1673769347271,0.006,20729.0,20728.0,3.86408288]
[1673769347527,0.006,20729.0,20728.0,3.24508856]
[1673769348020,0.006,20729.0,20728.0,3.76502819]
[1673769348278,0.006,20729.0,20728.0,3.24508856]
[1673769348530,0.006,20729.0,20728.0,2.88431449]
[1673769349352,0.006,20729.0,20728.0,3.55399525]
[1673769349628,0.006,20729.0,20728.0,2.88431449]
[1673769356323,0.006,20729.0,20728.0,3.76305354]
[1673769356324,0.00123922,20729.0,20728.0,3.76305354]
[1673769356573,0.00123922,20729.0,20728.0,2.88431449]
[1673769359864,0.00123922,20729.0,20728.0,3.34341449]
[1673769360559,0.00123922,20729.0,20728.0,4.22248402]
[1673769361332,0.00123922,20729.0,20728.0,3.78897978]
[1673769361585,0.00101622,20729.0,20728.0,3.78898992]
[1673769361834,0.00101622,20729.0,20728.0,4.22249416]
[1673769362560,0.00101622,20729.0,20728.0,3.78898992]
[1673769362813,0.00101622,20729.0,20728.0,4.22249416]
[1673769366266,0.00101622,20729.0,20728.0,4.81818376]
[1673769366520,0.00101622,20729.0,20728.0,4.81351242]
[1673769366765,0.00101622,20729.0,20728.0,4.22233899]
[1673769367007,0.00101622,20729.0,20728.0,3.34341449]
[1673769367220,0.00101622,20729.0,20728.0,3.78886017]
[1673769367475,0.00101622,20729.0,20728.0,3.34341449]
[1673769367719,0.00101622,20729.0,20728.0,3.91824853]
[1673769367958,0.00101622,20729.0,20728.0,3.34341449]
[1673769368209,0.00101622,20729.0,20728.0,3.87285417]
[1673769368456,0.00101622,20729.0,20728.0,3.34341449]
[1673769368710,0.00101622,20729.0,20728.0,3.83478861]
[1673769369729,0.00101622,20729.0,20728.0,3.35234961]
[1673769370235,0.01815659,20729.0,20728.0,3.71298041]
[1673769370983,0.01815659,20729.0,20728.0,4.19541941]
[1673769371232,0.00101622,20729.0,20728.0,4.19541941]
[1673769372202,0.01813472,20729.0,20728.0,4.19541941]
[1673769374782,0.01813472,20729.0,20728.0,3.82393724]
[1673769375067,0.01813472,20729.0,20728.0,3.34341449]
[1673769376314,0.00382939,20729.0,20728.0,3.34341449]
[1673769376555,0.00382939,20729.0,20728.0,3.78671729]
[1673769376807,0.00382939,20729.0,20728.0,3.89880252]
[1673769377061,0.54570628,20732.0,20728.0,4.62017336]
[1673769377338,0.54570628,20732.0,20730.0,0.14427884]
[1673769377597,0.21660986,20731.0,20730.0,0.14427884]
[1673769377853,0.86442445,20731.0,20730.0,0.14427884]
[1673769378110,0.92153645,20731.0,20730.0,0.14427884]
[1673769378366,0.70492659,20731.0,20730.0,0.14427884]
[1673769378632,0.14438386,20731.0,20730.0,0.14427884]
[1673769379725,0.006,20731.0,20730.0,0.646988]
[1673769381392,0.14438386,20732.0,20730.0,0.646988]
[1673769381393,0.14438386,20732.0,20730.0,0.61823223]
[1673769381691,0.006,20731.0,20730.0,0.64723223]
[1673769382227,0.14438386,20732.0,20730.0,0.61823223]
[1673769382760,0.15038386,20732.0,20730.0,0.64723223]
[1673769383267,0.15038386,20732.0,20730.0,0.646988]
[1673769386271,0.67537158,20732.0,20730.0,0.646988]
[1673769390000,0.67537158,20732.0,20730.0,0.17327884]
[1673769390248,0.66559584,20731.0,20730.0,0.17327884]
[1673769391937,0.66559584,20731.0,20730.0,0.14427884]
[1673769392158,0.67159584,20731.0,20730.0,0.17327884]
[1673769396151,0.67159584,20731.0,20730.0,0.49456584]
[1673769396425,0.67159584,20731.0,20730.0,0.33164384]
[1673769396666,0.67159584,20731.0,20730.0,0.49456584]
[1673769397155,0.67159584,20731.0,20730.0,0.17327884]
[1673769397720,0.67159584,20731.0,20730.0,0.65048053]
[1673769397965,0.67150602,20731.0,20730.0,0.65048053]
[1673769398885,0.006,20731.0,20730.0,0.65048053]
[1673769399175,0.006,20731.0,20730.0,0.97176753]
[1673769400416,0.006,20731.0,20730.0,0.65048053]
[1673769401086,0.55301965,20731.0,20730.0,0.17327884]
[1673769401530,0.61013165,20731.0,20730.0,0.17327884]
[1673769401753,0.55301965,20731.0,20730.0,0.17327884]
[1673769413946,0.6976064,20731.0,20730.0,0.17327884]
[1673769416124,0.6976064,20731.0,20730.0,0.17321495]
[1673769416381,0.91449886,20731.0,20730.0,0.17321495]
[1673769417829,0.97161086,20731.0,20730.0,0.17321495]
[1673769418088,0.91449886,20731.0,20730.0,0.17321495]
[1673769421872,0.36747921,20731.0,20730.0,0.17321495]
[1673769422848,0.36747921,20731.0,20730.0,1.29090494]
[1673769423118,0.36704501,20731.0,20730.0,1.61219194]
[1673769425025,0.36704501,20731.0,20730.0,1.60719194]
[1673769426918,0.36704501,20731.0,20730.0,1.60743617]
[1673769427902,0.36704501,20731.0,20730.0,1.28614917]
[1673769429071,0.22245826,20731.0,20730.0,1.60743617]
[1673769431230,0.0055658,20731.0,20730.0,1.60743617]
[1673769431455,0.0055658,20731.0,20730.0,1.28614917]
[1673769433638,0.0055658,20731.0,20730.0,1.38614917]
[1673769437536,0.0055658,20731.0,20730.0,1.70743617]
[1673769438489,0.0055658,20731.0,20730.0,1.7039241]
[1673769438736,0.0055658,20731.0,20730.0,1.702184]
[1673769441378,0.0055658,20731.0,20730.0,1.69779648]
[1673769442393,0.0055658,20731.0,20730.0,1.56822122]
[1673769443459,0.0055658,20731.0,20730.0,1.40529922]
[1673769443707,0.0055658,20731.0,20730.0,1.24693422]
[1673769443961,0.0055658,20731.0,20730.0,1.24515043]
[1673769444207,0.0055658,20731.0,20730.0,1.24132238]
[1673769450264,0.0055658,20731.0,20730.0,1.56260938]
[1673769451454,0.0055658,20731.0,20730.0,1.5624724]
[1673769451955,0.0055658,20731.0,20730.0,1.2411854]
[1673769453507,0.0055658,20731.0,20730.0,1.5624724]
[1673769465938,0.0055658,20731.0,20730.0,2.52732139]
[1673769466627,0.0055658,20731.0,20730.0,1.5624724]
[1673769467775,0.0055658,20731.0,20730.0,1.70660843]
[1673769471538,0.0055658,20731.0,20730.0,2.64481151]
[1673769471790,0.0055658,20731.0,20730.0,3.7791712]
[1673769472040,0.0055658,20731.0,20730.0,3.93503517]
[1673769473056,0.0055658,20731.0,20730.0,3.63503517]
[1673769473582,0.0055658,20731.0,20730.0,3.99537525]
[1673769473813,0.0055658,20731.0,20730.0,4.29537525]
[1673769474071,0.0055658,20731.0,20730.0,3.63503517]
[1673769474313,0.0055658,20731.0,20730.0,3.85117854]
[1673769474573,0.0054533,20731.0,20730.0,3.85117854]
[1673769474816,0.0054533,20731.0,20730.0,3.56290648]
[1673769475047,0.0054533,20731.0,20730.0,3.85117854]
[1673769475312,0.0054533,20731.0,20730.0,3.56290648]
[1673769475806,0.0054533,20731.0,20730.0,3.85117854]
[1673769476644,0.0054533,20731.0,20730.0,4.15117854]
[1673769476851,0.0054533,20731.0,20730.0,3.93503517]
[1673769477522,0.0054533,20731.0,20730.0,3.63503517]
[1673769477800,0.0054533,20731.0,20730.0,4.15115756]
[1673769478268,0.0054533,20731.0,20730.0,3.85115756]
[1673769479942,0.0054533,20731.0,20730.0,4.15115756]
[1673769480486,0.0054533,20731.0,20730.0,3.85115756]
[1673769480744,0.0054533,20731.0,20730.0,3.18746193]
[1673769480995,0.0054533,20731.0,20730.0,2.97133954]
[1673769481245,0.0054533,20731.0,20730.0,3.27133954]
[1673769481486,0.0054533,20731.0,20730.0,3.759549]
[1673769482006,0.0054533,20731.0,20730.0,4.11988908]
[1673769482252,0.0054533,20731.0,20730.0,3.759549]
[1673769482516,0.0054533,20731.0,20730.0,3.459549]
[1673769482763,0.0054533,20731.0,20730.0,3.759549]
[1673769483276,0.0054533,20731.0,20730.0,3.97564374]
[1673769483498,0.0054533,20731.0,20730.0,2.977157]
[1673769483716,0.0054533,20731.0,20730.0,3.19324478]
[1673769484135,0.0054533,20731.0,20730.0,3.49324478]
[1673769484820,0.0054533,20731.0,20730.0,3.20497272]
[1673769485214,0.0054533,20731.0,20730.0,2.90497272]
[1673769485751,0.0054533,20731.0,20730.0,3.04900638]
[1673769486004,0.0054533,20731.0,20730.0,2.01211429]
[1673769486253,0.0054533,20731.0,20730.0,1.69082729]
[1673769486759,0.0054533,20731.0,20730.0,1.54680125]
[1673769488275,0.020826,20731.0,20730.0,1.54680125]
[1673769488531,1.23673973,20731.0,20730.0,1.05859179]
[1673769488783,1.51083225,20731.0,20730.0,1.05859179]
[1673769489269,1.51072618,20731.0,20730.0,1.05859179]
[1673769490777,1.29374566,20731.0,20730.0,1.05859179]
[1673769492778,0.66682905,20731.0,20730.0,1.05859179]
[1673769493040,0.60971705,20731.0,20730.0,1.05859179]
[1673769493292,0.66682905,20731.0,20730.0,1.05859179]
[1673769493551,0.66682905,20731.0,20730.0,1.05883602]
[1673769493805,0.66682905,20731.0,20730.0,1.05859179]
[1673769494031,0.020826,20731.0,20730.0,1.05859179]
[1673769494803,0.020826,20731.0,20730.0,1.60669828]
[1673769502966,0.020826,20731.0,20730.0,1.92798528]
[1673769503747,0.020826,20731.0,20730.0,1.76506328]
[1673769505757,0.020826,20731.0,20730.0,2.06506328]
[1673769506262,0.020826,20731.0,20730.0,1.76506328]
[1673769506738,0.020826,20731.0,20730.0,2.06506328]
[1673769507771,0.020826,20731.0,20730.0,2.54745528]
[1673769508013,0.020826,20731.0,20730.0,2.69148132]
[1673769508510,0.020826,20731.0,20730.0,2.54745528]
[1673769509290,0.020826,20731.0,20730.0,2.69148132]
[1673769509767,0.020826,20731.0,20730.0,2.54745528]
[1673769511753,0.020826,20731.0,20730.0,2.14337483]
[1673769511983,0.02076548,20731.0,20730.0,2.68191553]
[1673769512209,0.93493868,20735.0,20731.0,0.1]
[1673769512454,0.93493868,20735.0,20732.0,0.19072595]
[1673769512944,0.14454761,20734.0,20733.0,0.47720169]
[1673769514560,0.20554761,20734.0,20733.0,0.48020169]
[1673769519991,0.061,20734.0,20733.0,0.99414733]
[1673769520266,0.061,20734.0,20733.0,1.45946037]
[1673769520521,0.061,20734.0,20733.0,1.31543433]
[1673769521285,0.061,20734.0,20733.0,1.79775633]
[1673769521537,0.73929201,20736.0,20733.0,1.79475633]
[1673769521800,0.73929201,20736.0,20734.0,0.63548069]
[1673769522056,0.5947444,20736.0,20734.0,0.47720169]
[1673769522349,0.73929201,20736.0,20734.0,1.03762768]
[1673769522573,0.5947444,20736.0,20734.0,1.03762768]
[1673769522823,0.73929201,20736.0,20734.0,1.03762768]
[1673769523081,0.5947444,20736.0,20734.0,1.03762768]
[1673769523348,0.36122441,20737.0,20734.0,1.03762768]
[1673769523613,0.85813896,20737.0,20734.0,1.03762768]
[1673769523838,0.64146216,20737.0,20734.0,1.03762768]
[1673769524067,0.64146216,20737.0,20735.0,0.54428862]
[1673769524818,0.005,20736.0,20735.0,0.54428862]
[1673769525078,0.85813896,20737.0,20735.0,0.54428862]
[1673769525339,0.64146216,20737.0,20735.0,0.54428862]
[1673769525589,0.64646216,20737.0,20735.0,0.57928862]
[1673769525844,0.64146216,20737.0,20735.0,0.54428862]
[1673769526092,1.12369516,20737.0,20735.0,0.54428862]
[1673769526348,0.005,20736.0,20735.0,0.57928862]
[1673769526601,0.14454761,20736.0,20735.0,0.54428862]
[1673769526851,1.34037196,20737.0,20735.0,0.54428862]
[1673769527318,0.057112,20736.0,20735.0,0.54428862]
[1673769527562,1.34037196,20737.0,20735.0,0.54428862]
[1673769528276,1.34537196,20737.0,20735.0,0.57928862]
[1673769528496,0.057112,20736.0,20735.0,0.57928862]
[1673769528764,1.34537196,20737.0,20735.0,0.57928862]
[1673769529280,0.14954761,20737.0,20735.0,0.57928862]
[1673769529558,0.005,20737.0,20735.0,0.57928862]
[1673769530087,2.01630575,20738.0,20735.0,0.54428862]
[1673769531626,0.005,20736.0,20735.0,0.57928862]
[1673769531865,0.14454761,20737.0,20735.0,0.54428862]
[1673769532111,0.14454761,20737.0,20735.0,1.05649031]
[1673769532363,2.02130575,20738.0,20735.0,1.05649031]
[1673769532614,1.53909375,20738.0,20735.0,1.05649031]
[1673769532858,0.14454761,20737.0,20735.0,1.05649031]
[1673769533107,1.53409375,20738.0,20735.0,1.02149031]
[1673769533343,0.005,20737.0,20735.0,1.05649031]
[1673769533844,0.14954761,20737.0,20735.0,1.05649031]
[1673769534094,0.005,20737.0,20735.0,1.05649031]
[1673769535345,0.50282939,20737.0,20735.0,1.05649031]
[1673769536364,0.647377,20737.0,20735.0,1.05649031]
[1673769536609,0.50282939,20737.0,20735.0,1.05649031]
[1673769538876,0.005,20737.0,20736.0,0.61410437]
[1673769539895,1.27182565,20738.0,20736.0,0.61410437]
[1673769539896,0.54645712,20738.0,20736.0,0.61410437]
[1673769540155,0.54645712,20738.0,20737.0,1.00225913]
[1673769540934,0.54645712,20738.0,20737.0,2.10216156]
[1673769542681,0.54945712,20738.0,20737.0,2.15716156]
[1673769544511,0.54945712,20738.0,20737.0,2.68166363]
[1673769544767,0.54945712,20738.0,20737.0,2.03393695]
[1673769545036,1.1398438,20738.0,20737.0,0.05510044]
[1673769545356,1.2397665,20738.0,20737.0,0.05510044]
[1673769545473,1.4564433,20738.0,20737.0,0.05510044]
[1673769545990,1.4534433,20738.0,20737.0,0.00010044]
[1673769546242,1.4574433,20738.0,20737.0,0.05010044]
[1673769546519,0.91617762,20738.0,20737.0,0.05]
[1673769547029,0.55095321,20738.0,20735.0,0.55536721]
[1673769547340,0.55095321,20738.0,20737.0,0.011]
[1673769547341,0.49472661,20738.0,20737.0,0.011]
[1673769547619,0.49472661,20738.0,20737.0,0.20367]
[1673769547620,0.00507684,20738.0,20737.0,0.20367]
[1673769547910,0.00907684,20738.0,20737.0,0.574957]
[1673769548189,0.00907684,20738.0,20737.0,0.73087169]
[1673769548697,0.00507684,20738.0,20737.0,1.82432628]
[1673769548948,0.00907684,20738.0,20737.0,2.19561328]
[1673769549346,0.00507684,20738.0,20737.0,1.98250928]
[1673769550012,0.00907684,20738.0,20737.0,2.03250928]
[1673769551109,0.00907684,20738.0,20737.0,2.16303641]
[1673769551326,0.0135091,20742.0,20737.0,2.16303641]
[1673769551327,0.36122441,20744.0,20738.0,0.1]
[1673769551559,0.14454761,20744.0,20739.0,1.97946492]
[1673769551817,0.14454761,20744.0,20740.0,1.01513692]
[1673769552077,0.14454761,20744.0,20741.0,0.95933369]
[1673769552291,0.9152346,20745.0,20741.0,1.15005964]
[1673769552542,0.9152346,20745.0,20741.0,1.49726892]
[1673769552954,0.6985578,20745.0,20741.0,1.49726892]
[1673769553427,0.37473351,20745.0,20742.0,0.58320637]
[1673769553849,0.37473351,20745.0,20743.0,0.00024408]
[1673769554070,0.86467454,20745.0,20743.0,0.10281408]
[1673769554289,0.057112,20744.0,20743.0,0.10281408]
[1673769554505,0.64799774,20745.0,20743.0,0.10281408]
[1673769554941,0.057112,20744.0,20743.0,0.10281408]
[1673769555180,0.86467454,20745.0,20743.0,0.10281408]
[1673769555628,0.057112,20744.0,20743.0,0.10281408]
[1673769555853,0.86467454,20745.0,20743.0,0.10281408]
[1673769556089,0.0135091,20745.0,20744.0,0.47808541]
[1673769556315,0.0135091,20745.0,20744.0,0.47800526]
[1673769557270,0.0135091,20745.0,20744.0,1.04920695]
[1673769557500,0.0135091,20745.0,20744.0,0.95520695]
[1673769557918,0.0135091,20745.0,20744.0,1.04920695]
[1673769558212,0.0135091,20745.0,20743.0,0.00024408]
[1673769558625,0.0135091,20745.0,20743.0,0.65544127]
[1673769559995,0.0135091,20745.0,20743.0,0.74844127]
[1673769560865,0.0135091,20745.0,20744.0,0.51988434]
[1673769562190,0.0135091,20745.0,20744.0,0.61388434]
[1673769563308,0.0135091,20745.0,20744.0,0.094]
[1673769563533,0.0706211,20745.0,20744.0,0.094]
[1673769563744,0.0135091,20745.0,20744.0,0.094]
[1673769564882,0.60380864,20745.0,20744.0,0.094]
[1673769567318,0.0135091,20745.0,20744.0,0.094]
[1673769567573,0.0135091,20745.0,20744.0,0.57335742]
[1673769568076,0.0135091,20745.0,20744.0,0.094]
[1673769569412,0.68350709,20745.0,20744.0,0.094]
[1673769574289,0.74061909,20745.0,20744.0,0.094]
[1673769574546,0.68350709,20745.0,20744.0,0.094]
[1673769574788,0.74061909,20745.0,20744.0,0.094]
[1673769575299,0.68350709,20745.0,20744.0,0.094]
[1673769575806,1.22266209,20745.0,20744.0,0.094]
[1673769576067,1.3672097,20745.0,20744.0,0.094]
[1673769577274,1.3672097,20745.0,20741.0,0.58232956]
[1673769577528,1.41683461,20745.0,20742.0,0.60162344]
[1673769577767,1.3150977,20745.0,20742.0,0.60162344]
[1673769578273,0.057112,20744.0,20742.0,0.60162344]
[1673769578514,1.3100977,20745.0,20742.0,0.60162344]
[1673769578764,1.3100977,20745.0,20742.0,0.68862344]
[1673769579527,0.057112,20744.0,20742.0,0.68862344]
[1673769579775,0.6581184,20744.0,20742.0,0.68862344]
[1673769580529,0.6581184,20744.0,20742.0,0.60162344]
[1673769580779,0.6581184,20744.0,20742.0,0.68862344]
[1673769581335,0.6581184,20744.0,20742.0,0.68852034]
[1673769581578,0.64723224,20744.0,20742.0,0.68852034]
[1673769581816,0.63630974,20744.0,20742.0,0.68852034]
[1673769582566,0.78085735,20744.0,20742.0,0.68852034]
[1673769583082,0.63630974,20744.0,20742.0,0.68852034]
[1673769583333,0.78085735,20744.0,20742.0,0.68852034]
[1673769584114,0.057112,20743.0,20742.0,0.68852034]
[1673769584366,0.14454761,20744.0,20742.0,1.16572203]
[1673769584835,1.37741789,20745.0,20742.0,1.16572203]
[1673769585129,1.37741789,20745.0,20742.0,1.07872203]
[1673769585381,0.057112,20744.0,20742.0,1.16572203]
[1673769585640,1.37741789,20745.0,20742.0,1.16572203]
[1673769586385,0.36122441,20744.0,20742.0,1.07872203]
[1673769587129,0.36122441,20744.0,20743.0,0.50625089]
[1673769587382,0.36122441,20744.0,20743.0,0.98345258]
[1673769587383,0.14454761,20744.0,20743.0,0.98345258]
[1673769588372,0.36122441,20744.0,20743.0,0.98345258]
[1673769589186,0.98805116,20744.0,20743.0,0.98345258]
[1673769589707,0.98805116,20744.0,20743.0,1.04945258]
[1673769590216,0.98805116,20744.0,20743.0,0.54320169]
[1673769590471,1.24501572,20744.0,20743.0,0.54320169]
[1673769590733,1.18790372,20744.0,20743.0,0.54320169]
[1673769590980,1.54953793,20744.0,20743.0,0.54320169]
[1673769591231,1.54953793,20744.0,20743.0,0.066]